bitfinex/quotes_ETHUSD_20250406
["timestamp","ask_amount","ask_price","bid_price","bid_amount"]
[1743979494220,8.329,1583.5,1583.1,6.31657]
[1743979494405,3.0,1583.4,1583.0,12.63401]
[1743979494585,3.0,1583.4,1583.0,6.31696]
[1743979494785,3.0,1583.4,1582.9,7.08628]
[1743979494786,6.496521,1583.2,1582.9,6.31731]
[1743979495006,11.328,1583.1,1582.7,12.63642]
[1743979495216,11.328,1583.1,1582.7,6.31814]
[1743979495419,11.328,1583.1,1582.8,6.31775]
[1743979495827,11.328,1583.1,1582.8,6.31774]
[1743979496205,11.328,1583.1,1582.5,7.11247]
[1743979496401,11.328,1583.1,1582.7,6.31817]
[1743979496602,11.328,1583.1,1582.5,0.7937]
[1743979496917,11.328,1583.1,1582.6,6.31836]
[1743979497329,21.58710643,1583.1,1582.5,7.11276]
[1743979497515,0.8171,1582.9,1582.5,6.31893]
[1743979497847,0.8171,1582.9,1582.6,6.31856]
[1743979498138,0.754,1583.3,1582.9,6.31715]
[1743979498436,7.07011,1583.3,1582.7,7.14126]
[1743979498741,3.0,1583.0,1582.6,6.31869]
[1743979498928,3.931672,1583.0,1582.6,6.31869]
[1743979499113,3.931672,1583.0,1582.4,7.14248]
[1743979499313,11.326,1583.0,1582.6,6.31836]
[1743979499518,11.326,1583.0,1582.6,6.31843]
[1743979499915,11.326,1583.0,1582.7,6.31829]
[1743979500250,8.326,1583.0,1582.8,6.31776]
[1743979500459,8.326,1583.0,1582.5,6.31911]
[1743979500639,4.5923,1582.9,1582.5,6.3191]
[1743979500939,3.0,1582.7,1582.2,6.32024]
[1743979501310,3.7843,1582.5,1582.1,12.64121]
[1743979501507,3.7843,1582.5,1582.1,6.32054]
[1743979501740,8.325,1582.6,1582.3,6.31966]
[1743979501942,3.94231643,1582.8,1582.7,6.31831]
[1743979502143,0.7843,1583.1,1583.0,6.31711]
[1743979502307,55.78450643,1583.5,1583.0,6.31711]
[1743979502308,9.1421,1583.3,1583.0,12.63407]
[1743979502507,49.46931643,1583.5,1583.1,6.31657]
[1743979502508,8.325,1583.4,1583.1,6.31657]
[1743979502823,14.64067,1583.4,1582.8,12.63552]
[1743979503026,3.0,1583.3,1582.8,6.31773]
[1743979503226,8.325,1583.4,1583.0,6.31693]
[1743979503613,3.0,1583.3,1583.1,6.31642]
[1743979503820,8.325,1583.4,1582.9,6.31751]
[1743979504015,8.325,1583.4,1582.9,6.31733]
[1743979504347,3.0,1583.3,1582.9,6.31733]
[1743979504548,8.325,1583.4,1582.9,6.31751]
[1743979504845,9.1401,1583.7,1583.5,6.31508]
[1743979505047,8.323,1583.7,1583.5,6.31492]
[1743979505250,8.323,1583.7,1583.4,6.3153]
[1743979505419,8.323,1583.7,1583.5,12.62978]
[1743979505617,0.8371,1583.9,1583.6,6.31466]
[1743979505936,0.02,1583.9,1583.7,6.31405]
[1743979506136,0.02,1583.9,1583.8,7.07642]
[1743979506463,0.02,1583.9,1583.7,6.31405]
[1743979506663,0.02,1583.9,1583.8,6.31392]
[1743979506822,0.02,1583.9,1583.8,7.576717]
[1743979507415,0.811,1583.8,1583.4,6.16]
[1743979507618,7.12502,1583.8,1583.3,0.48279088]
[1743979507853,0.811,1583.8,1583.3,0.48279088]
[1743979508038,9.31451,1583.7,1583.3,0.48279088]
[1743979508210,8.32,1583.6,1583.4,6.31538]
[1743979508414,46.33,1583.8,1583.7,6.31432]
[1743979508661,15.28231643,1583.9,1583.5,6.31499]
[1743979508872,15.28231643,1583.9,1583.4,0.67981709]
[1743979509070,0.02,1583.9,1583.8,6.31392]
[1743979509287,6.57151556,1583.9,1583.8,6.31392]
[1743979511489,6.57151556,1583.9,1583.7,6.31415]
[1743979511646,6.57151556,1583.9,1583.8,6.31392]
[1743979512073,0.02,1583.9,1583.7,6.31414]
[1743979512276,0.02,1583.9,1583.8,6.31392]
[1743979512777,0.02,1583.9,1583.6,12.62923]
[1743979513081,10.09996,1583.9,1583.4,6.31547]
[1743979513283,6.31415,1583.8,1583.0,6.31711]
[1743979513435,3.631415,1583.7,1583.5,6.31498]
[1743979513635,3.94231643,1583.8,1583.3,7.10513]
[1743979513836,0.7862,1583.9,1583.7,6.31432]
[1743979514142,0.02,1583.9,1583.8,6.31392]
[1743979514340,0.02,1583.9,1583.8,7.659934]
[1743979514908,0.02,1583.9,1583.8,6.31392]
[1743979515084,0.02,1583.9,1583.5,6.31512]
[1743979515085,6.55151556,1583.7,1583.5,6.31512]
[1743979515267,6.55151556,1583.7,1583.6,6.31454]
[1743979515780,6.55151556,1583.7,1583.6,6.37767674]
[1743979515981,6.55151556,1583.7,1583.6,8.40681967]
[1743979516485,1e-05,1583.9,1583.8,7.13692]
[1743979516893,49.45731643,1584.7,1584.1,6.31272]
[1743979517060,0.7594,1584.5,1583.8,7.14367]
[1743979517268,3.94231643,1584.6,1584.4,6.31137]
[1743979517564,3.94231643,1584.6,1584.3,12.62354]
[1743979517766,3.94231643,1584.6,1584.4,6.31115]
[1743979518095,3.94231643,1584.6,1583.9,6.3134]
[1743979518096,0.8323,1584.4,1583.9,6.3134]
[1743979518285,8.311,1584.3,1583.9,6.31352]
[1743979518483,12.25331643,1584.3,1584.0,6.31309]
[1743979518699,12.25331643,1584.3,1584.1,12.62524]
[1743979518898,12.25331643,1584.3,1584.1,6.31256]
[1743979519210,0.4749504,1584.5,1584.4,6.31153]
[1743979519414,0.7928,1584.6,1584.3,6.31188]
[1743979519713,0.7928,1584.6,1584.1,6.31272]
[1743979519891,7.10385,1584.6,1584.1,6.31272]
[1743979520089,0.710385,1584.5,1584.2,6.31211]
[1743979520396,7.73511643,1584.6,1584.2,12.62426]
[1743979520599,7.73511643,1584.6,1584.3,6.31191]
[1743979520779,4.73511643,1584.6,1584.5,6.31113]
[1743979521112,4.73511643,1584.6,1584.2,6.31219]
[1743979521308,14.04599643,1584.6,1584.1,6.31266]
[1743979521609,14.04599643,1584.6,1584.0,6.31292]
[1743979521610,3.0,1584.5,1584.0,6.31292]
[1743979521915,7.73511643,1584.6,1584.3,6.31165]
[1743979522207,3.94231643,1584.6,1584.5,6.31113]
[1743979522442,45.515,1584.7,1584.6,6.31074]
[1743979522572,9.1033,1584.8,1584.6,6.31074]
[1743979522767,8.308,1584.8,1584.7,6.31034]
[1743979522970,0.02,1584.9,1584.7,6.31034]
[1743979523198,0.02,1584.9,1584.8,6.30994]
[1743979524589,0.02,1584.9,1584.8,7.63503299]
[1743979524912,0.02,1584.9,1584.8,8.81810038]
[1743979525217,0.02,1584.9,1584.8,8.354852]
[1743979526124,3.94231643,1585.8,1585.5,6.30701]
[1743979526274,3.94231643,1585.8,1585.2,6.30831]
[1743979526478,3.39423164,1585.7,1585.2,6.30831]
[1743979526784,0.55,1585.5,1585.1,6.30869]
[1743979527176,19.36013643,1585.6,1585.2,6.30822]
[1743979527177,13.05321643,1585.6,1585.2,6.30822]
[1743979527375,3.0,1585.5,1585.2,6.30822]
[1743979527611,3.0,1585.5,1585.1,6.30871]
[1743979527912,3.0,1585.5,1585.0,6.30909]
[1743979528070,0.55,1585.4,1585.0,12.61803]
[1743979528274,4.49231643,1585.4,1585.0,12.61803]
[1743979528485,4.49231643,1585.4,1584.9,6.30949]
[1743979528692,0.44923164,1585.3,1584.9,6.30939]
[1743979528900,3.44923164,1585.3,1584.7,7.12863]
[1743979529109,3.44923164,1585.3,1585.0,6.30914]
[1743979529309,3.44923164,1585.3,1584.7,0.8184]
[1743979529310,15.95998,1585.2,1584.7,0.8184]
[1743979529510,0.55,1584.9,1584.5,6.31102]
[1743979529682,0.8005,1584.8,1584.6,6.31072]
[1743979529878,3.0,1585.0,1584.8,6.30977]
[1743979530496,3.0,1585.0,1584.6,6.31055]
[1743979530700,3.77428164,1585.0,1584.3,7.10883]
[1743979530908,3.77428164,1585.0,1584.3,0.7972]
[1743979530909,0.55,1584.9,1584.3,0.7972]
[1743979531118,3.0,1585.0,1584.7,6.31018]
[1743979531417,4.74281643,1585.1,1584.5,6.31113]
[1743979531620,4.74281643,1585.1,1585.0,6.30914]
[1743979531621,0.8005,1585.1,1585.0,6.30914]
[1743979531801,0.8005,1585.1,1584.4,6.31153]
[1743979532011,5.65296643,1585.1,1584.7,6.31007]
[1743979532204,0.55,1584.9,1584.7,6.31007]
[1743979532404,5.65296643,1585.1,1584.7,6.31007]
[1743979532718,3.55,1585.0,1584.6,0.06309424]
[1743979532878,3.65860495,1585.0,1584.6,6.31059]
[1743979533085,3.65860495,1585.0,1584.6,12.62114]
[1743979533285,3.65860495,1585.0,1584.8,6.30972]
[1743979533617,13.06611643,1585.3,1585.1,6.30871]
[1743979533827,13.06611643,1585.3,1584.9,6.30948]
[1743979534326,0.55,1585.1,1584.7,6.31028]
[1743979534490,0.55,1585.1,1584.6,6.3106]
[1743979534491,0.8248,1585.0,1584.6,6.3106]
[1743979534683,8.848,1584.9,1584.6,6.31056]
[1743979534913,8.848,1584.9,1584.4,7.11439]
[1743979535210,8.298,1584.9,1584.7,6.3101]
[1743979535411,8.298,1584.9,1584.8,6.30994]
[1743979535815,8.298,1584.9,1584.7,12.62031]
[1743979535992,8.298,1584.9,1584.8,6.30994]
[1743979536400,3.94231643,1585.0,1584.9,6.30954]
[1743979537033,53.7878,1585.2,1585.1,6.30875]
[1743979537230,53.7878,1585.2,1584.9,6.30939]
[1743979537522,53.7878,1585.2,1584.3,12.47192]
[1743979537523,9.85887,1585.1,1584.6,6.31055]
[1743979537726,6.94231643,1585.1,1584.8,6.30956]
[1743979538029,6.94231643,1585.1,1584.8,12.61935]
[1743979538333,6.94231643,1585.1,1584.9,6.30921]
[1743979538508,3.94231643,1585.1,1585.0,6.30914]
[1743979538829,9.1179,1585.5,1585.4,6.30755]
[1743979539124,0.8229,1585.5,1585.4,6.30755]
[1743979539329,42.5069,1585.8,1585.6,6.30657]
[1743979539524,50.8019,1585.8,1585.6,6.30661]
[1743979539903,50.8019,1585.8,1585.5,12.61392]
[1743979540094,50.8019,1585.8,1585.5,6.30695]
[1743979540291,50.8019,1585.8,1585.6,6.3066]
[1743979540529,50.8019,1585.8,1585.5,6.30715]
[1743979541101,0.55,1585.7,1585.5,6.30715]
[1743979541321,50.8019,1585.8,1585.7,6.30636]
[1743979541519,49.979,1585.8,1585.6,6.30662]
[1743979541761,49.979,1585.8,1585.7,6.30636]
[1743979542215,41.684,1585.8,1585.7,6.30636]
[1743979542666,41.684,1585.8,1585.2,7.58472778]
[1743979542667,41.684,1585.8,1585.5,6.30713]
[1743979542964,41.684,1585.8,1585.3,6.30767]
[1743979542965,41.684,1585.8,1585.4,12.61482]
[1743979543114,41.684,1585.8,1585.2,1.27668778]
[1743979543115,41.684,1585.8,1585.5,6.30685]
[1743979543319,41.684,1585.8,1585.6,6.30674]
[1743979543519,41.684,1585.8,1585.6,6.30654]
[1743979543765,41.684,1585.8,1585.6,12.61308]
[1743979543920,41.684,1585.8,1585.5,6.30696]
[1743979544115,0.7623,1585.6,1585.3,6.30782]
[1743979544346,9.0533,1585.6,1585.3,6.30774]
[1743979544520,8.291,1585.6,1585.5,6.30715]
[1743979544926,45.62631643,1585.8,1585.7,6.30636]
[1743979545126,45.62631643,1585.8,1585.6,6.30659]
[1743979545127,41.684,1585.8,1585.5,6.30698]
[1743979545319,41.684,1585.8,1585.6,6.30643]
[1743979545518,41.684,1585.8,1585.4,6.30745]
[1743979545721,41.684,1585.8,1585.3,12.61573]
[1743979545722,0.8037,1585.6,1585.3,12.61573]
[1743979545957,0.55,1585.5,1585.3,6.30782]
[1743979546134,3.94231643,1585.6,1585.2,6.78656365]
[1743979546349,3.94231643,1585.6,1585.5,6.30715]
[1743979546530,3.94231643,1585.6,1585.4,6.30753]
[1743979546731,3.94231643,1585.6,1585.3,12.6157]
[1743979547056,4.33654807,1585.6,1585.5,6.30715]
[1743979547253,3.94231643,1585.6,1585.5,6.30715]
[1743979547435,3.94231643,1585.6,1585.4,6.3075]
[1743979547766,3.94231643,1585.6,1585.2,6.30835]
[1743979548061,3.94231643,1585.6,1585.5,6.30715]
[1743979548447,3.94231643,1585.6,1585.4,6.30738]
[1743979548652,3.94231643,1585.6,1585.4,12.61476]
[1743979548847,3.94231643,1585.6,1585.4,6.30738]
[1743979549165,42.4877,1585.8,1585.7,6.30636]
[1743979549340,49.971,1585.8,1585.6,6.30658]
[1743979549545,49.971,1585.8,1585.5,6.3071]
[1743979549937,49.971,1585.8,1585.5,12.6141]
[1743979550232,41.684,1585.8,1585.7,6.30636]
[1743979550432,41.684,1585.8,1585.6,6.30658]
[1743979550657,41.684,1585.8,1585.4,6.30734]
[1743979550862,8.286,1585.7,1585.4,6.30734]
[1743979551055,8.286,1585.7,1585.5,6.30703]
[1743979551255,8.286,1585.7,1585.4,6.30734]
[1743979551551,4.3707,1585.6,1585.1,6.30835]
[1743979551758,1.3707,1585.6,1585.3,6.30791]
[1743979552068,7.67748,1585.6,1585.2,6.30832]
[1743979552236,1.3707,1585.6,1585.2,6.30832]
[1743979552434,5.31301643,1585.6,1585.3,6.30763]
[1743979553061,5.31301643,1585.6,1585.3,12.61544]
[1743979553272,5.31301643,1585.6,1585.3,6.30765]
[1743979553566,0.20015401,1585.5,1585.3,6.30765]
[1743979554879,0.20015401,1585.5,1585.1,12.61724]
[1743979555032,3.20015401,1585.5,1584.9,1.22314999]
[1743979555232,0.55,1585.1,1584.7,12.62052]
[1743979555432,0.55,1585.1,1584.6,0.7563]
[1743979555433,8.283,1585.0,1584.6,6.31073]
[1743979555673,8.283,1585.0,1584.4,6.31145]
[1743979555674,4.3715,1584.9,1584.4,6.31145]
[1743979555875,0.55,1584.7,1584.4,6.31145]
[1743979556033,8.282,1584.6,1584.3,6.31178]
[1743979556239,0.8317,1584.5,1584.3,6.31178]
[1743979556434,8.47698279,1584.6,1584.5,6.31113]
[1743979556636,8.282,1584.6,1584.5,6.31113]
[1743979556853,9.02698279,1584.6,1584.3,6.31192]
[1743979557040,0.55,1584.5,1584.2,6.31218]
[1743979557459,0.55,1584.5,1584.1,6.31267]
[1743979557660,1.01668279,1584.4,1584.2,6.31219]
[1743979557865,1.01668279,1584.4,1584.3,6.31193]
[1743979558063,0.19498279,1584.4,1584.3,6.31193]
[1743979558232,0.19498279,1584.4,1584.3,8.379942]
[1743979558579,8.281,1584.6,1584.5,6.31113]
[1743979558990,9.0678,1584.9,1584.8,6.30994]
[1743979559169,9.0678,1584.9,1584.6,6.3106]
[1743979559344,9.0678,1584.9,1584.7,6.31011]
[1743979559851,9.0678,1584.9,1584.6,6.31067]
[1743979560049,9.0678,1584.9,1584.8,6.30994]
[1743979560278,41.667,1585.0,1584.9,6.30954]
[1743979560874,41.667,1585.0,1584.8,6.30975]
[1743979561411,41.667,1585.0,1584.7,6.31031]
[1743979561607,41.667,1585.0,1584.7,12.62045]
[1743979561778,41.667,1585.0,1584.8,6.30975]
[1743979562171,44.667,1585.0,1584.9,6.30954]
[1743979562479,44.667,1585.0,1584.8,12.6195]
[1743979562697,44.667,1585.0,1584.7,6.31026]
[1743979562911,44.667,1585.0,1584.8,6.30991]
[1743979563260,44.667,1585.0,1584.8,6.30975]
[1743979563505,0.8275,1584.8,1584.4,6.31145]
[1743979563687,19.35992643,1584.8,1584.4,6.31145]
[1743979563900,0.8275,1584.5,1584.0,7.11359]
[1743979564115,12.22231643,1584.4,1584.0,12.62618]
[1743979564318,3.0,1584.3,1584.0,6.31309]
[1743979564478,0.8275,1584.2,1583.8,0.01665043]
[1743979564684,3.0,1584.0,1583.8,0.01665043]
[1743979564983,11.28,1584.0,1583.8,6.33043043]
[1743979565883,11.28,1584.0,1583.8,0.01665043]
[1743979566219,3.94231643,1583.9,1583.8,6.33057043]
[1743979566919,3.94231643,1584.4,1584.3,6.31193]
[1743979567116,3.94231643,1584.4,1584.2,6.31215]
[1743979567425,0.55,1584.3,1584.0,6.31309]
[1743979567614,0.55,1584.3,1583.9,12.62704]
[1743979567821,0.55,1584.1,1583.8,0.01665043]
[1743979567977,3.8008,1584.0,1583.8,0.01665043]
[1743979568175,3.8008,1584.0,1583.8,6.33043043]
[1743979568615,0.16501652,1583.9,1583.8,6.33043043]
[1743979568824,4.10733295,1583.9,1583.8,6.33043043]
[1743979570383,4.10733295,1583.9,1583.8,0.01665043]
[1743979570811,14.76166625,1583.9,1583.8,0.01665043]
[1743979571010,14.76166625,1583.9,1583.1,6.33669]
[1743979571011,6.31482,1583.6,1583.1,6.33657]
[1743979571315,8.279,1583.8,1583.7,6.31414]
[1743979571514,0.16501652,1583.8,1583.7,6.31414]
[1743979571733,46.447566,1584.0,1583.7,12.62828]
[1743979572023,0.16501652,1583.9,1583.8,6.31388]
[1743979572354,0.16501652,1583.9,1583.6,6.31451]
[1743979572527,0.55,1583.8,1583.6,6.31451]
[1743979572727,0.16347036,1583.7,1583.6,6.31451]
[1743979572955,0.16347036,1583.7,1583.1,7.10191]
[1743979572956,12.36713636,1583.7,1583.1,7.10191]
[1743979573109,4.3656,1583.6,1583.3,12.6314]
[1743979573318,12.203666,1583.7,1583.5,6.31512]
[1743979573654,12.203666,1583.7,1583.6,6.31472]
[1743979574140,3.925666,1583.7,1583.6,6.31472]
[1743979574342,8.278,1583.8,1583.7,6.31432]
[1743979574544,8.278,1583.8,1583.6,12.62927]
[1743979574718,8.278,1583.8,1583.7,6.31432]
[1743979574923,8.278,1583.8,1583.6,6.31454]
[1743979575254,8.278,1583.8,1583.7,6.31432]
[1743979575951,3.925666,1583.9,1583.8,6.31392]
[1743979576121,41.694,1584.0,1583.9,6.31352]
[1743979576336,12.203666,1584.2,1584.1,6.31273]
[1743979576545,12.203666,1584.2,1584.0,6.31295]
[1743979576877,3.925666,1584.2,1584.1,6.31273]
[1743979577036,8.277,1584.3,1584.2,6.31233]
[1743979577236,45.628666,1584.4,1584.3,6.31193]
[1743979577437,41.703,1584.4,1584.3,7.574356]
[1743979577666,53.905666,1585.0,1584.6,7.06754]
[1743979577881,53.905666,1585.0,1584.8,6.3097]
[1743979578242,53.905666,1585.0,1584.9,6.30954]
[1743979578542,53.905666,1585.0,1584.7,6.31014]
[1743979578865,3.0,1584.9,1584.6,6.31052]
[1743979579062,0.55,1584.9,1584.6,12.62105]
[1743979579263,0.55,1584.9,1584.7,6.31029]
[1743979579486,0.55,1584.9,1584.8,6.30994]
[1743979579985,45.628666,1585.0,1584.9,6.30954]
[1743979580147,41.703,1585.0,1584.9,6.30954]
[1743979580667,49.58091495,1585.0,1584.5,0.7633]
[1743979580838,0.55,1584.8,1584.5,6.31108]
[1743979581039,3.55,1584.8,1584.3,1.24658234]
[1743979581276,3.55,1584.8,1584.7,6.31034]
[1743979581459,3.0,1584.8,1584.7,6.31034]
[1743979581661,3.0,1584.8,1584.5,12.62205]
[1743979582050,3.0,1584.8,1584.5,6.31098]
[1743979582262,0.55,1584.7,1584.5,6.31109]
[1743979582668,0.55,1584.7,1584.4,12.62298]
[1743979582865,6.86037,1584.7,1584.2,6.31225]
[1743979583069,0.55,1584.5,1584.2,12.62438]
[1743979583274,9.6256,1584.5,1584.2,12.62438]
[1743979583576,0.17323953,1584.4,1584.3,6.31186]
[1743979583905,0.17323953,1584.4,1584.3,6.31193]
[1743979584201,0.17323953,1584.4,1584.3,6.37504316]
[1743979584509,0.17323953,1584.4,1584.3,9.002951]
[1743979584670,9.53e-06,1584.4,1584.3,12.002951]
[1743979584862,8.53e-06,1584.4,1584.3,12.002951]
[1743979585204,4.723166,1585.4,1585.2,6.30803]
[1743979585366,4.723166,1585.4,1585.0,6.30886]
[1743979585367,0.1222774,1585.3,1585.0,6.30886]
[1743979585906,4.475666,1585.2,1584.5,0.7614]
[1743979586052,0.55,1584.6,1584.2,7.07353]
[1743979586259,12.744666,1584.6,1584.4,6.31152]
[1743979586487,0.55,1584.4,1584.1,0.47694022]
[1743979586795,1.3674,1584.2,1584.1,0.47694022]
[1743979587005,22.9966734,1584.2,1584.1,0.47694022]
[1743979587369,22.9967134,1584.2,1583.7,6.31429]
[1743979587569,22.9967134,1584.2,1583.8,6.31374]
[1743979588577,16.6843434,1584.2,1583.5,6.31512]
[1743979588781,4.0479434,1584.2,1584.0,6.3131]
[1743979588984,4.0479434,1584.2,1584.1,6.31273]
[1743979589180,0.1222774,1584.2,1584.0,6.31299]
[1743979589503,0.1222774,1584.2,1584.1,6.31273]
[1743979589802,11.268,1584.4,1584.3,6.31193]
[1743979589969,11.268,1584.4,1584.2,6.31225]
[1743979589970,8.3902774,1584.4,1584.2,6.31225]
[1743979590155,8.3902774,1584.4,1584.2,6.31211]
[1743979590357,8.3902774,1584.4,1584.3,6.31193]
[1743979590778,8.3902774,1584.4,1583.8,6.31378]
[1743979590779,3.55,1584.3,1583.7,7.09217]
[1743979590967,3.55,1584.3,1583.3,6.31562]
[1743979590968,0.55,1583.8,1583.4,7.09328]
[1743979591171,3.0,1583.6,1583.4,6.3155]
[1743979591406,3.0,1583.6,1583.4,6.31531]
[1743979591608,3.0,1583.6,1583.5,6.31512]
[1743979592108,3.0,1583.6,1583.4,6.31535]
[1743979592406,0.1222774,1583.5,1583.4,6.3153]
[1743979592767,0.55,1583.4,1583.3,6.31575]
[1743979592962,3.0,1583.6,1583.3,6.3157]
[1743979593210,0.6722774,1583.5,1583.2,6.31627]
[1743979593392,0.6722774,1583.5,1583.1,6.33671]
[1743979593393,8.265,1583.4,1583.1,6.33671]
[1743979593705,3.0,1583.3,1583.1,0.02]
[1743979593911,3.1222774,1583.3,1583.1,0.02]
[1743979594113,4.8806434,1583.3,1583.1,0.02]
[1743979594274,4.0479434,1583.3,1583.2,6.31632]
[1743979594473,3.925666,1583.3,1583.2,6.31632]
[1743979594818,3.55,1583.3,1583.1,0.02]
[1743979594978,12.5635666,1583.3,1583.1,0.02]
[1743979595164,56.317386,1583.2,1583.1,0.02]
[1743979595364,7.13674,1582.7,1582.1,0.8122]
[1743979595606,8.265,1582.6,1582.3,6.31966]
[1743979595787,0.55,1582.3,1582.1,0.02]
[1743979595988,18.95361,1582.2,1582.1,0.02]
[1743979596591,22.879276,1582.2,1582.1,0.02]
[1743979597011,6.87151,1581.9,1581.8,0.55]
[1743979597311,6.87208,1581.8,1581.1,0.02]
[1743979597514,6.87208,1581.8,1581.2,6.32407]
[1743979597515,0.55,1581.6,1581.2,6.32407]
[1743979597716,0.55,1581.4,1581.1,0.02]
[1743979597876,8.267,1581.3,1581.1,6.34453]
[1743979598071,44.714,1581.5,1581.1,6.34453]
[1743979598072,3.925666,1582.3,1581.3,3.0]
[1743979598277,8.266,1582.7,1582.2,6.32028]
[1743979598278,3.925666,1582.6,1582.2,6.32028]
[1743979598515,7.10118,1582.4,1581.8,6.32175]
[1743979598822,7.10118,1582.4,1581.6,0.831]
[1743979598823,0.55,1582.2,1581.6,0.831]
[1743979599003,3.0,1582.3,1581.8,6.32186]
[1743979599207,0.8046,1582.7,1582.6,6.31871]
[1743979599388,41.714,1582.8,1582.4,6.31923]
[1743979599589,41.714,1582.8,1582.3,6.31976]
[1743979599818,3.55,1582.7,1582.3,6.31971]
[1743979600004,3.55,1582.7,1582.4,6.31946]
[1743979600398,3.0,1582.7,1582.6,6.31871]
[1743979600604,3.925666,1583.1,1582.9,6.31718]
[1743979600884,4.65711826,1583.2,1582.9,12.63454]
[1743979601094,4.65711826,1583.2,1582.8,6.31761]
[1743979601301,0.55,1583.1,1582.9,6.31729]
[1743979601497,4.65711826,1583.2,1582.9,6.31729]
[1743979601807,10.97372826,1583.2,1582.5,0.7725]
[1743979601991,0.55,1583.0,1582.7,6.31802]
[1743979602189,3.925666,1583.0,1582.5,7.15469181]
[1743979602488,3.0,1583.1,1582.9,6.31714]
[1743979602691,41.726,1583.5,1582.9,0.631714]
[1743979603032,6.3162,1583.3,1582.7,7.10329]
[1743979603215,6.86691,1583.1,1582.6,6.31847]
[1743979603412,0.55,1582.9,1582.6,12.63693]
[1743979603583,0.55,1582.6,1581.6,6.32265]
[1743979603791,0.55,1582.6,1581.9,0.7981]
[1743979603991,0.55,1582.6,1582.3,6.31975]
[1743979604191,0.55,1582.6,1582.4,6.31925]
[1743979604418,3.0,1582.7,1582.6,6.31871]
[1743979604637,3.0,1582.7,1582.5,6.31903]
[1743979604831,3.0,1582.7,1582.1,6.32035]
[1743979604996,3.0,1582.7,1582.6,6.31871]
[1743979605192,3.55,1582.7,1582.4,0.8205]
[1743979605401,3.0,1582.7,1582.4,0.8205]
[1743979605611,7.709266,1583.0,1582.7,6.3181]
[1743979605835,3.7836,1583.0,1582.7,6.3181]
[1743979605997,3.7836,1583.0,1582.6,6.31857]
[1743979606196,0.55,1582.9,1582.6,6.31857]
[1743979606410,6.31812,1582.8,1582.3,6.31976]
[1743979606608,18.13436,1582.7,1582.2,6.32002]
[1743979606831,0.55,1582.4,1582.2,6.32002]
[1743979607146,0.55,1582.4,1582.1,12.64113]
[1743979607444,0.55,1582.4,1582.1,6.32047]
[1743979607927,0.55,1582.4,1582.2,6.32006]
[1743979608248,3.55,1582.5,1582.1,6.3207]
[1743979608452,0.55,1582.3,1582.0,9.40600357]
[1743979608752,0.55,1582.3,1582.0,3.08495357]
[1743979608994,5.036666,1582.4,1582.0,3.08495357]
[1743979609275,0.55,1582.3,1582.1,6.3207]
[1743979609480,0.55,1582.3,1582.1,6.32048]
[1743979609680,6.925666,1582.6,1582.3,6.31975]
[1743979609850,6.925666,1582.6,1582.2,6.32025]
[1743979610048,0.8192,1582.3,1582.0,3.08495357]
[1743979610259,0.55,1582.1,1582.0,3.08495357]
[1743979610649,0.55,1582.1,1581.9,6.32125]
[1743979610963,8.265,1582.2,1582.0,6.32111]
[1743979611883,8.265,1582.2,1582.0,12.64206]
[1743979612081,4.3692,1582.3,1582.0,12.64206]
[1743979612082,3.55,1582.3,1582.1,6.32071]
[1743979612254,3.0,1582.3,1581.8,6.32166]
[1743979612455,0.55,1582.2,1581.9,6.32136]
[1743979612796,8.265,1582.5,1582.0,0.86590903]
[1743979612940,48.26569642,1582.7,1582.5,6.31911]
[1743979613149,6.53269642,1582.7,1582.6,6.31871]
[1743979613669,6.42e-06,1582.7,1582.6,7.13581]
[1743979613851,5.43746634,1583.4,1583.3,6.31592]
[1743979613852,4.65636634,1583.4,1583.3,6.31592]
[1743979614987,4.65636634,1583.4,1583.1,12.63306]
[1743979615182,4.65636634,1583.4,1583.1,6.31649]
[1743979615483,4.65636634,1583.4,1583.1,12.63297]
[1743979615644,3.0,1583.3,1583.0,12.63396]
[1743979615992,3.0,1583.3,1583.1,6.31658]
[1743979616148,3.0,1583.3,1583.0,6.31711]
[1743979616344,3.0,1583.3,1583.2,6.31632]
[1743979616554,3.0,1583.3,1583.1,6.31671]
[1743979616756,4.65636634,1583.4,1583.3,6.31592]
[1743979617357,3.925666,1583.7,1583.6,6.31472]
[1743979617577,10.239736,1583.8,1583.3,6.31577]
[1743979617780,4.475666,1583.7,1583.4,6.3155]
[1743979618003,3.925666,1583.7,1583.3,6.3159]
[1743979618297,3.925666,1583.6,1583.1,6.31672]
[1743979618455,3.925666,1583.6,1583.3,6.31557]
[1743979618662,3.925666,1583.6,1583.2,6.31614]
[1743979618860,3.925666,1583.6,1583.3,6.31578]
[1743979619069,3.925666,1583.6,1583.3,12.63149]
[1743979619273,6.31646,1583.2,1582.9,4.67174314]
[1743979619482,3.55,1583.0,1582.9,4.67174314]
[1743979619649,3.0,1583.0,1582.9,4.67174314]
[1743979620218,3.55,1583.0,1582.9,4.67174314]
[1743979620860,13.792776,1583.0,1582.9,4.67174314]
[1743979621191,14.543776,1583.0,1582.9,4.67174314]
[1743979621590,8.226666,1583.0,1582.9,4.67174314]
[1743979621792,3.0,1583.0,1582.9,10.98925314]
[1743979621986,0.8108,1583.3,1583.0,6.31701]